bitfinex/quotes_BTCUSD_20241124
["timestamp","ask_amount","ask_price","bid_price","bid_amount"]
[1732412780379,0.0017182,98026.0,98002.0,0.15]
[1732412780600,0.0017182,98026.0,98001.0,0.10201427]
[1732412780601,0.0017182,98026.0,98010.0,0.07857911]
[1732412780812,0.0017182,98026.0,98011.0,0.10201427]
[1732412781027,0.0017182,98026.0,98012.0,0.15]
[1732412781250,0.0017182,98026.0,98013.0,0.10201427]
[1732412783033,0.0017182,98026.0,98014.0,0.15]
[1732412783253,0.0017182,98026.0,98010.0,0.15715822]
[1732412783254,0.0017182,98026.0,98016.0,0.15]
[1732412783499,0.0017182,98026.0,98018.0,0.15]
[1732412783709,0.0008592,98020.0,98019.0,0.10201427]
[1732412783934,0.0008592,98020.0,98019.0,0.25201427]
[1732412785594,0.0017182,98026.0,98019.0,0.25201427]
[1732412785800,0.0017182,98026.0,98020.0,0.15]
[1732412786027,0.0017182,98026.0,98022.0,0.15]
[1732412789770,0.0017182,98026.0,98022.0,0.18295129]
[1732412790473,0.0758,98037.0,98022.0,0.18295129]
[1732412790717,0.0758,98037.0,98027.0,0.07857911]
[1732412790943,0.00553316,98036.0,98027.0,0.07857911]
[1732412793055,0.00553316,98036.0,98022.0,0.18295129]
[1732412793285,0.00553316,98036.0,98026.0,0.07857911]
[1732412794895,0.0492,98035.0,98026.0,0.07857911]
[1732412795122,0.0056455,98034.0,98026.0,0.07857911]
[1732412795357,0.0056455,98034.0,98022.0,0.03295129]
[1732412795589,0.0056455,98034.0,98022.0,0.15]
[1732412796543,0.0492,98035.0,98022.0,0.15]
[1732412796770,0.0492,98035.0,98025.0,0.07857911]
[1732412800329,0.1265,98032.0,98021.0,0.03335727]
[1732412800559,0.0008588,98036.0,98021.0,0.18335727]
[1732412800560,0.1265,98030.0,98021.0,0.18335727]
[1732412800752,0.0795,98029.0,98021.0,0.15]
[1732412801014,0.047,98027.0,98021.0,0.15]
[1732412801490,0.00565403,98026.0,98021.0,0.15]
[1732412801734,0.047,98025.0,98021.0,0.15]
[1732412801982,0.047,98025.0,98019.0,0.07857911]
[1732412802224,0.005654,98024.0,98019.0,0.07857911]
[1732412802714,0.005654,98024.0,98016.0,0.15]
[1732412803196,0.047,98025.0,98016.0,0.15]
[1732412803642,0.047,98025.0,98015.0,0.22857911]
[1732412804851,0.047,98025.0,98014.0,0.07857911]
[1732412805098,0.047,98025.0,98015.0,0.22857911]
[1732412805321,0.005654,98024.0,98015.0,0.22857911]
[1732412805548,0.047,98025.0,98015.0,0.22857911]
[1732412806233,0.047,98025.0,98015.0,0.15715822]
[1732412806480,0.005654,98024.0,98015.0,0.15715822]
[1732412807221,0.01586423,98025.0,98015.0,0.15887562]
[1732412807445,0.0795,98028.0,98016.0,0.10201427]
[1732412807922,0.0795,98035.0,98018.0,0.07857911]
[1732412808132,0.0795,98035.0,98026.0,0.15715822]
[1732412808346,0.0795,98043.0,98040.0,0.07857911]
[1732412808561,0.0795,98043.0,98027.0,0.25201427]
[1732412809480,0.07846307,98043.0,98033.0,0.07857911]
[1732412812107,0.07846307,98043.0,98034.0,0.15]
[1732412820235,0.07932177,98043.0,98034.0,0.15]
[1732412833131,0.07932177,98043.0,98034.0,0.151717]
[1732412838721,0.0008587,98043.0,98034.0,0.198017]
[1732412841617,0.0008587,98043.0,98034.0,0.151717]
[1732412843814,0.0008587,98043.0,98033.0,0.1114436]
[1732412843815,0.0008587,98043.0,98033.0,0.07857911]
[1732412845502,0.0008587,98043.0,98034.0,0.001717]
[1732412846192,0.0829,98041.0,98034.0,0.001717]
[1732412848088,0.0829,98039.0,98034.0,0.001717]
[1732412848310,0.0829,98037.0,98034.0,0.001717]
[1732412848526,0.05037507,98036.0,98034.0,0.001717]
[1732412848780,0.0829,98035.0,98034.0,0.001717]
[1732412849019,0.132,98035.0,98034.0,0.001717]
[1732412850656,0.0829,98035.0,98020.0,0.00469649]
[1732412850914,0.0491,98034.0,98025.0,0.07857911]
[1732412851156,0.0491,98034.0,98020.0,0.00469649]
[1732412851157,0.0491,98034.0,98020.0,0.11658204]
[1732412851394,0.0491,98034.0,98020.0,0.0832756]
[1732412852524,0.0491,98034.0,98020.0,0.07857911]
[1732412852741,0.1228,98032.0,98020.0,0.07857911]
[1732412852954,0.0762,98030.0,98020.0,0.07857911]
[1732412853228,0.0466,98029.0,98020.0,0.07857911]
[1732412853667,0.0466,98029.0,98017.0,0.15]
[1732412853966,0.0466,98029.0,98019.0,0.07857911]
[1732412856492,0.0466,98029.0,98020.0,0.15]
[1732412856710,0.0496,98037.0,98020.0,0.15]
[1732412856925,0.0496,98037.0,98027.0,0.07857911]
[1732412858554,0.0496,98037.0,98028.0,0.15]
[1732412859238,0.10328929,98036.0,98020.0,0.03557706]
[1732412859901,0.0496,98033.0,98020.0,0.03557706]
[1732412860126,0.0008587,98043.0,98020.0,0.03557706]
[1732412860127,0.10328955,98032.0,98020.0,0.03557706]
[1732412860400,0.0764,98030.0,98020.0,0.03557706]
[1732412860640,0.126,98027.0,98020.0,0.03557706]
[1732412860875,0.126,98025.0,98020.0,0.03557706]
[1732412861121,0.10328958,98024.0,98020.0,0.03557706]
[1732412861593,0.10328958,98024.0,98020.0,0.001717]
[1732412861838,0.126,98023.0,98020.0,0.001717]
[1732412862052,0.00127533,98022.0,98020.0,0.001717]
[1732412862272,0.126,98021.0,98020.0,0.001717]
[1732412862512,0.12727531,98021.0,98020.0,0.001717]
[1732412862751,0.22928964,98021.0,98020.0,0.001717]
[1732412862970,0.22801427,98021.0,98020.0,0.001717]
[1732412872455,0.22801427,98021.0,98020.0,0.00060794]
[1732412872692,0.22801427,98021.0,98019.0,0.03177607]
[1732412872921,0.0797,98019.0,98016.0,0.0017174]
[1732412873184,0.04967537,98018.0,98016.0,0.0017174]
[1732412873405,0.04967537,98018.0,98016.0,0.03448819]
[1732412873844,0.04967537,98018.0,98016.0,0.0017174]
[1732412881303,0.04967537,98018.0,97987.0,0.03631448]
[1732412881525,0.04967537,98018.0,97987.0,0.0695235]
[1732412883264,0.04967537,98018.0,97987.0,0.03631448]
[1732412883505,0.04100637,98018.0,97988.0,0.15]
[1732412883720,0.04063611,98018.0,98001.0,0.15]
[1732412888581,0.03342411,98018.0,98001.0,0.15]
[1732412890787,0.03342411,98018.0,98008.0,0.07857911]
[1732412891766,0.03342411,98018.0,98001.0,0.15]
[1732412893776,0.03428311,98018.0,98001.0,0.15]
[1732412896851,0.03428311,98018.0,98008.0,0.07857911]
[1732412899395,0.03428311,98018.0,98001.0,0.15]
[1732412906217,0.10201427,98020.0,98001.0,0.1517176]
[1732412906453,0.00127537,98019.0,98001.0,0.1517176]
[1732412909316,0.1254,98018.0,98001.0,0.1517176]
[1732412909522,0.00127537,98017.0,98001.0,0.1517176]
[1732412913119,0.0008587,98021.0,98007.0,0.07857911]
[1732412913338,0.0008587,98021.0,98008.0,0.00102019]
[1732412913548,0.0008587,98021.0,98009.0,0.08372015]
[1732412913777,0.0008587,98021.0,98010.0,0.1987]
[1732412913965,0.0008587,98021.0,98011.0,0.00102015]
[1732412916479,0.00127519,98027.0,98011.0,0.00102015]
[1732412917988,0.00127519,98027.0,98011.0,0.04202857]
[1732412918203,0.0488,98028.0,98011.0,0.00102015]
[1732412918416,0.0008591,98021.0,98011.0,0.00102015]
[1732412919274,0.0008591,98021.0,98012.0,0.040721]
[1732412919495,0.0008591,98021.0,98013.0,0.00102015]
[1732412919945,0.0008591,98021.0,98012.0,0.040721]
[1732412926718,0.0008591,98021.0,98013.0,0.00102015]
[1732412927395,0.0008591,98021.0,98014.0,0.0468]
[1732412927612,0.0008591,98021.0,98014.0,0.04782015]
[1732412927825,0.0008591,98021.0,98014.0,0.04502532]
[1732412930492,0.0008591,98021.0,98014.0,0.00102015]
[1732412935052,0.0008591,98021.0,98009.0,0.07977885]
[1732412935487,0.0008591,98021.0,98010.0,0.040721]
[1732412935691,0.0008591,98021.0,98009.0,0.07977885]
[1732412935891,0.0008591,98021.0,98009.0,0.16089622]
[1732412937199,0.0008591,98021.0,98010.0,0.15]
[1732412940283,0.047,98020.0,98009.0,0.04039637]
[1732412940530,0.0008591,98021.0,98003.0,0.15]
[1732412940531,0.047,98018.0,98003.0,0.15]
[1732412940752,0.047,98018.0,98007.0,0.040722]
[1732412940972,0.0819,98019.0,98004.0,0.15]
[1732412940973,0.04827523,98017.0,98004.0,0.15]
[1732412941866,0.04827523,98017.0,97998.0,0.040726]
[1732412942954,0.04827523,98017.0,98000.0,0.07857911]
[1732412943614,0.04827523,98017.0,98003.0,0.0017182]
[1732412946676,0.047,98017.0,98007.0,0.07857911]
[1732412948006,0.0008591,98021.0,98007.0,0.30715822]
[1732412948218,0.0008591,98021.0,98009.0,0.1993]
[1732412948448,0.0008587,98035.0,98011.0,0.15]
[1732412948656,0.0008587,98035.0,98025.0,0.07857911]
[1732412951170,0.0008587,98035.0,98026.0,0.15]
[1732412952755,0.0008587,98035.0,98025.0,0.11948335]
[1732412952756,0.0008587,98035.0,98025.0,0.04090424]
[1732412952970,0.0008587,98035.0,98026.0,0.15]
[1732412953940,0.0008587,98035.0,98025.0,0.07857911]
[1732412955794,0.0008587,98035.0,98025.0,0.07571073]
[1732412956412,0.0008587,98035.0,98026.0,0.15]
[1732412957537,0.0008587,98035.0,98025.0,0.10893616]
[1732412957797,0.0008587,98035.0,98025.0,0.07857911]
[1732412958247,0.0008587,98035.0,98001.0,0.0017176]
[1732412958459,0.0008587,98035.0,98025.0,0.07857911]
[1732412962079,0.0008587,98035.0,98025.0,0.11915408]
[1732412962289,0.0008587,98035.0,98026.0,0.15]
[1732412967833,0.0781,98042.0,98026.0,0.15]
[1732412968292,0.00127502,98041.0,98026.0,0.15]
[1732412968729,0.00127502,98041.0,98025.0,0.04229297]
[1732412968938,0.00127502,98041.0,98030.0,0.07857911]
[1732412969193,0.0781,98042.0,98030.0,0.07857911]
[1732412969856,0.0494,98041.0,98030.0,0.07857911]
[1732412970515,0.05067502,98041.0,98025.0,0.04229297]
[1732412970722,0.05067502,98041.0,98030.0,0.07857911]
[1732412971217,0.0494,98041.0,98030.0,0.07857911]
[1732412971436,0.05067502,98041.0,98030.0,0.07857911]
[1732412972725,0.0494,98041.0,98030.0,0.07857911]
[1732412974554,0.05067502,98041.0,98030.0,0.07857911]
[1732412978964,0.05153392,98041.0,98030.0,0.07857911]
[1732412979194,0.05153392,98041.0,98026.0,0.1517178]
[1732412979195,0.00127502,98040.0,98026.0,0.1517178]
[1732412979448,0.0462,98039.0,98026.0,0.0017178]
[1732412979663,0.0008589,98041.0,98026.0,0.0017178]
[1732412979664,0.0761,98038.0,98026.0,0.0017178]
[1732412979889,0.0462,98037.0,98026.0,0.0017178]
[1732412980140,0.0462,98037.0,98028.0,0.07857911]
[1732412982356,0.0462,98037.0,98027.0,0.07857911]
[1732412985226,0.0462,98037.0,98020.0,0.04172777]
[1732412985464,0.0462,98037.0,98027.0,0.07857911]
[1732412986118,0.0462,98037.0,98020.0,0.07857911]
[1732412986119,0.0462,98037.0,98012.0,0.01497471]
[1732412986545,0.0462,98037.0,98027.0,0.07857911]
[1732412988142,0.0462,98037.0,98020.0,0.07857911]
[1732412990734,0.0462,98037.0,98012.0,0.05724674]
[1732412990913,0.0462,98037.0,98026.0,0.0017178]
[1732412991615,0.0008589,98041.0,98026.0,0.0017178]
[1732412991616,0.10328929,98036.0,98026.0,0.0017178]
[1732412991919,0.128,98033.0,98026.0,0.0017178]
[1732412992176,0.002,98035.0,98026.0,0.0017178]
[1732412992177,0.0495,98031.0,98026.0,0.0017178]
[1732412992379,0.1032896,98030.0,98026.0,0.0017178]
[1732412992542,0.128,98028.0,98026.0,0.0017178]
[1732412992844,0.2312896,98027.0,98026.0,0.0017178]
[1732412993204,0.23001427,98027.0,98026.0,0.0017178]
[1732412996772,0.0763,98023.0,97982.0,0.0453]
[1732412996973,0.0484,98019.0,97990.0,0.07857911]
[1732412997196,0.0763,98015.0,97990.0,0.07857911]
[1732412997408,0.0763,98015.0,97973.0,0.0792]
[1732412997409,0.0763,98012.0,97973.0,0.06337523]
[1732412997629,0.68125189,98076.0,97990.0,0.07857911]
[1732412997630,0.0484,98009.0,97990.0,0.07857911]
[1732412997839,0.0484,98007.0,97990.0,0.07857911]
[1732412998058,0.04967546,98006.0,97990.0,0.07857911]
[1732412999410,0.04967546,98006.0,97974.0,0.10201427]
[1732412999411,0.0484,98004.0,97974.0,0.10201427]
[1732412999659,0.00127546,98006.0,97974.0,0.10201427]
[1732412999660,0.0484,98001.0,97980.0,0.07857911]
[1732413000571,0.0484,98001.0,97990.0,0.07857911]
[1732413003099,0.0484,98001.0,97990.0,0.08029731]
[1732413003328,0.0484,98001.0,97990.0,0.0017182]
[1732413003567,0.0484,98001.0,97990.0,0.04309411]
[1732413003785,0.0484,98001.0,97991.0,0.15]
[1732413015380,0.0492595,98001.0,97991.0,0.15]
[1732413017379,0.0492595,98001.0,97991.0,0.22857911]
[1732413017630,0.0008595,98001.0,97991.0,0.22857911]
[1732413018260,0.0459,98007.0,97991.0,0.22857911]
[1732413018493,0.0459,98007.0,97998.0,0.15]
[1732413019764,0.0459,98007.0,97997.0,0.07857911]
[1732413025236,0.0459,98007.0,97998.0,0.15]
[1732413028812,0.0467595,98007.0,97998.0,0.15]
[1732413034887,0.04456485,98007.0,97998.0,0.15]
[1732413035722,0.0799,98006.0,97998.0,0.15]
[1732413036346,0.0799,98006.0,97997.0,0.04166556]
[1732413036580,0.0799,98006.0,97990.0,0.07857911]
[1732413036581,0.0799,98006.0,97991.0,0.15]
[1732413037009,0.0799,98006.0,97996.0,0.07857911]
[1732413038061,0.0465,98005.0,97996.0,0.07857911]
[1732413039915,0.0465,98005.0,97995.0,0.07857911]
[1732413042561,0.0465,98005.0,97990.0,0.07857911]
[1732413044066,0.0465,98005.0,97995.0,0.07857911]
[1732413055199,0.0465,98005.0,97993.0,0.15]
[1732413056062,0.0465,98005.0,97991.0,0.15]
[1732413056713,0.0465,98005.0,97991.0,0.45750436]
[1732413057140,0.0465,98005.0,97993.0,0.15]
[1732413057350,0.0465,98005.0,97991.0,0.45750436]
[1732413057351,0.0465,98005.0,97991.0,0.15]
[1732413057812,0.0465,98005.0,97995.0,0.07857911]
[1732413059596,0.0465,98005.0,97995.0,0.15]
[1732413062441,0.0465,98005.0,97995.0,0.45750436]
[1732413065192,0.0465,98005.0,97995.0,0.45774766]
[1732413065846,0.0465,98005.0,97995.0,0.53632677]
[1732413066086,0.0465,98005.0,97997.0,0.15]
[1732413066890,0.0473593,98005.0,97997.0,0.45750436]
[1732413067371,0.0473593,98005.0,97999.0,0.15]
[1732413067593,0.0473593,98005.0,97999.0,0.45750436]
[1732413068004,0.0473593,98005.0,97999.0,0.15]
[1732413068701,0.0473593,98005.0,97999.0,0.45750436]
[1732413069317,0.0008593,98005.0,97999.0,0.45750436]
[1732413069554,0.0008593,98005.0,98004.0,0.45750436]
[1732413069720,0.0008595,98007.0,98004.0,0.45750436]
[1732413069721,0.0008595,98007.0,98005.0,0.15]
[1732413069995,0.0459,98024.0,98009.0,0.2306]
[1732413070166,0.0459,98024.0,98019.0,0.45759348]
[1732413070379,0.0459,98024.0,98019.0,0.15]
[1732413071095,0.0459,98024.0,98019.0,0.45759348]
[1732413071334,0.0459,98024.0,98015.0,0.22857911]
[1732413071552,0.0459,98024.0,98017.0,0.15]
[1732413073069,0.0459,98024.0,98017.0,0.19117142]
[1732413074413,0.124,98031.0,98018.0,0.15]
[1732413074628,0.124,98031.0,98021.0,0.07857911]
[1732413074861,0.124,98031.0,98021.0,0.22857911]
[1732413075396,0.00504149,98030.0,98021.0,0.22857911]
[1732413075617,0.124,98031.0,98021.0,0.22857911]
[1732413075829,0.00428731,98029.0,98021.0,0.22857911]
[1732413076047,0.00428525,98030.0,98021.0,0.22857911]
[1732413076260,0.00428938,98028.0,98021.0,0.22857911]
[1732413076480,0.124,98031.0,98021.0,0.22857911]
[1732413076481,0.00428731,98029.0,98021.0,0.22857911]
[1732413076697,0.00428938,98028.0,98021.0,0.22857911]
[1732413076912,0.124,98031.0,98021.0,0.22857911]
[1732413077127,0.00428525,98030.0,98021.0,0.22857911]
[1732413077805,0.00428525,98030.0,98020.0,0.15715822]
[1732413078017,0.00428525,98030.0,98021.0,0.15]
[1732413078232,0.124,98031.0,98021.0,0.15]
[1732413079375,0.1248593,98031.0,98021.0,0.15]
[1732413079813,0.00488665,98030.0,98021.0,0.15]
[1732413080256,0.00488665,98030.0,98020.0,0.15715822]
[1732413080257,0.0487,98029.0,98020.0,0.07857911]
[1732413080472,0.00488665,98030.0,98020.0,0.07857911]
[1732413080473,0.1294,98028.0,98020.0,0.07857911]
[1732413080691,0.0487,98027.0,98020.0,0.07857911]
[1732413080906,0.053656,98027.0,98020.0,0.07857911]
[1732413105391,0.05389885,98027.0,98020.0,0.07857911]
[1732413109866,0.05389885,98027.0,98018.0,0.15]
[1732413110551,0.0487,98027.0,98018.0,0.15]
[1732413113613,0.0495591,98027.0,98018.0,0.15]
[1732413114023,0.0495591,98027.0,98018.0,0.45705911]
[1732413114507,0.0495591,98027.0,98020.0,0.15]
[1732413115404,0.0495591,98027.0,98022.0,0.30705911]
[1732413115613,0.0495591,98027.0,98023.0,0.15]
[1732413117937,0.0495591,98027.0,98022.0,0.15]
[1732413118351,0.0495591,98027.0,98021.0,0.15]
[1732413118956,0.0495591,98027.0,98021.0,0.45752189]
[1732413119122,0.0495591,98027.0,98023.0,0.15]
[1732413120370,0.0495591,98027.0,98022.0,0.15]
[1732413120573,0.0495591,98027.0,98024.0,0.15]
[1732413120858,0.0495591,98027.0,98022.0,0.45773283]
[1732413121064,0.0495591,98027.0,98024.0,0.15]
[1732413121269,0.0495591,98027.0,98022.0,0.15]
[1732413121270,0.0495591,98027.0,98022.0,0.45773283]
[1732413121687,0.0495591,98027.0,98025.0,0.15]
[1732413122102,0.0054219,98026.0,98025.0,0.15]
[1732413122729,0.0054219,98026.0,98025.0,0.45773283]
[1732413123161,0.0054219,98026.0,98025.0,0.15]
[1732413123581,0.0054219,98026.0,98024.0,0.15]
[1732413123995,0.0054219,98026.0,98023.0,0.45773283]
[1732413124204,0.0054219,98026.0,98017.0,0.30034391]
[1732413124456,0.0495591,98027.0,98017.0,0.30034391]
[1732413124639,0.00542189,98025.0,98017.0,0.30034391]
[1732413126162,0.00542189,98025.0,98018.0,0.15]
[1732413126385,0.00033189,98025.0,98020.0,0.2262]
[1732413126599,0.00062487,98024.0,98022.0,0.15]
[1732413126818,0.00062487,98024.0,98023.0,0.25201427]
[1732413127448,0.00062487,98024.0,98020.0,0.00956717]
[1732413127660,0.04165265,98035.0,98021.0,0.08335223]
[1732413127879,0.04165265,98035.0,98025.0,0.07857911]
[1732413134049,0.04165265,98035.0,98026.0,0.23293597]
[1732413135195,0.002,98057.0,98028.0,0.15]
[1732413135428,0.002,98057.0,98047.0,0.07857911]
[1732413135895,0.0037182,98058.0,98047.0,0.07857911]
[1732413137849,0.0017182,98058.0,98047.0,0.1189395]
[1732413138083,0.1234,98057.0,98047.0,0.1189395]
[1732413138310,0.00069145,98056.0,98047.0,0.1189395]
[1732413138554,0.0045458,98056.0,98047.0,0.1189395]
[1732413139414,0.0045458,98056.0,98048.0,0.15]
[1732413145172,0.0045458,98056.0,98047.0,0.19036039]
[1732413145419,0.0045458,98056.0,98046.0,0.07857911]
[1732413145624,0.0045458,98056.0,98047.0,0.15]
[1732413145845,0.1234,98057.0,98047.0,0.15]
[1732413146300,0.00476075,98056.0,98047.0,0.15]
[1732413146514,0.1234,98057.0,98047.0,0.15]
[1732413148182,0.0017182,98058.0,98047.0,0.15]
[1732413148386,0.00476076,98057.0,98047.0,0.15]
[1732413148590,0.00476076,98057.0,98046.0,0.04073668]
[1732413148796,0.0017182,98058.0,98047.0,0.07857911]
[1732413148967,0.00069353,98057.0,98047.0,0.07857911]
[1732413149181,0.00476076,98057.0,98047.0,0.07857911]
[1732413150568,0.00290276,98057.0,98047.0,0.07857911]
[1732413150787,0.00051807,98056.0,98047.0,0.07857911]
[1732413151029,0.0017182,98058.0,98047.0,0.07857911]
[1732413151451,0.0061565,98057.0,98047.0,0.07857911]
[1732413154188,0.00051807,98056.0,98047.0,0.07857911]
[1732413154616,0.07834232,98063.0,98049.0,0.1999]
[1732413154833,0.0008595,98100.0,98049.0,0.1999]
[1732413154834,0.00014682,98087.0,98054.0,0.15]
[1732413155085,0.00014682,98087.0,98060.0,0.15]
[1732413155909,0.002,98088.0,98060.0,0.15]
[1732413156973,0.0008592,98093.0,98060.0,0.15]
[1732413157169,0.002,98088.0,98060.0,0.15]
[1732413157602,0.0464,98071.0,98060.0,0.15]
[1732413159110,0.0464,98071.0,98061.0,0.08114157]
[1732413160858,0.0008587,98069.0,98061.0,0.08114157]
[1732413162560,0.0008587,98069.0,98059.0,0.15715822]
[1732413162561,0.0008587,98069.0,98059.0,0.23573733]
[1732413163281,0.0008587,98069.0,98059.0,0.28513733]
[1732413163490,0.0464,98075.0,98059.0,0.28513733]
[1732413163728,0.0769,98077.0,98065.0,0.15715822]
[1732413164971,0.0769,98077.0,98066.0,0.15]
[1732413169114,0.0464,98080.0,98066.0,0.15]
[1732413172501,0.0464,98080.0,98065.0,0.07857911]
[1732413172926,0.0464,98080.0,98070.0,0.07857911]
[1732413173332,0.04553837,98080.0,98070.0,0.07857911]
[1732413173921,0.0008586,98076.0,98070.0,0.07857911]
[1732413176613,0.0008586,98076.0,98071.0,0.15]
[1732413176819,0.04553837,98080.0,98071.0,0.15]
[1732413177839,0.0769,98084.0,98071.0,0.15]
[1732413178015,0.0769,98084.0,98074.0,0.07857911]
[1732413178642,0.0008592,98093.0,98074.0,0.07857911]
[1732413178643,0.0008592,98093.0,98076.0,0.2293]
[1732413178864,0.0473,98095.0,98084.0,0.15]
[1732413179074,0.075,98096.0,98084.0,0.15]
[1732413179486,0.0473,98101.0,98085.0,0.02315051]
[1732413179690,0.0473,98101.0,98090.0,0.15715822]
[1732413179825,0.0473,98101.0,98091.0,0.16390065]
[1732413180733,0.00668293,98099.0,98091.0,0.1635849]
[1732413180940,0.0473,98101.0,98091.0,0.1635849]
[1732413182540,0.0473,98101.0,98091.0,0.01390065]
[1732413184388,0.0473,98101.0,98091.0,0.05574345]
[1732413184637,0.0006495,98100.0,98091.0,0.20574345]
[1732413184858,0.0006495,98100.0,98091.0,0.16390065]
[1732413189184,0.075,98108.0,98091.0,0.16390065]
[1732413189936,0.04251949,98108.0,98091.0,0.16390065]
[1732413190172,0.04251949,98108.0,98098.0,0.15715822]
[1732413190391,0.04251949,98108.0,98099.0,0.17315051]
[1732413193126,0.04251949,98108.0,98098.0,0.15715822]
[1732413193346,0.04251949,98108.0,98098.0,0.07857911]
[1732413193555,0.0452,98107.0,98098.0,0.07857911]
[1732413193984,0.00462677,98106.0,98098.0,0.07857911]
[1732413197345,0.00489997,98106.0,98098.0,0.07857911]
[1732413204261,0.00489997,98106.0,98099.0,0.15]
[1732413204496,0.00489997,98106.0,98098.0,0.07857911]
[1732413204787,0.0452,98107.0,98098.0,0.07857911]
[1732413205309,0.0452,98107.0,98096.0,0.07857911]
[1732413210046,0.0452,98107.0,98091.0,0.0423988]
[1732413210247,0.0452,98107.0,98097.0,0.07857911]
[1732413211569,0.0460593,98107.0,98097.0,0.07857911]
[1732413212191,0.0460593,98107.0,98096.0,0.0017186]
[1732413212446,0.0460593,98107.0,98097.0,0.07857911]
[1732413212649,0.00500131,98106.0,98097.0,0.07857911]
[1732413213068,0.00106027,98105.0,98097.0,0.07857911]
[1732413213291,0.00500129,98105.0,98097.0,0.07857911]
[1732413213496,0.0479,98104.0,98097.0,0.07857911]
[1732413218883,0.0784,98103.0,98096.0,0.0017186]
[1732413219174,0.0473,98102.0,98096.0,0.0017186]
[1732413219360,0.05245248,98102.0,98096.0,0.0017186]
[1732413220617,0.0473,98102.0,98096.0,0.0017186]
[1732413221055,0.00515149,98101.0,98096.0,0.0017186]
[1732413221970,0.00515149,98101.0,98097.0,0.15]
[1732413222985,0.00515149,98101.0,98097.0,0.45770507]
[1732413223402,0.00515149,98101.0,98099.0,0.15]
[1732413224319,0.00515149,98101.0,98100.0,0.30801399]
[1732413224528,0.00515149,98101.0,98100.0,0.15]
[1732413224743,0.00515149,98101.0,98100.0,0.45801399]
[1732413225347,0.00515149,98101.0,98100.0,0.15]
[1732413225744,0.00515149,98101.0,98100.0,0.45819571]
[1732413227552,0.00515149,98101.0,98097.0,0.0017186]
[1732413227806,0.00515149,98101.0,98100.0,0.45820969]
[1732413228029,0.00515149,98101.0,98100.0,0.45820999]
[1732413228849,0.00515149,98101.0,98099.0,0.15]
[1732413229268,0.00515149,98101.0,98098.0,0.30820999]
[1732413229269,0.00515149,98101.0,98098.0,0.30824289]
[1732413229469,0.00515149,98101.0,98099.0,0.15]
[1732413229877,0.00515149,98101.0,98099.0,0.45824289]
[1732413230551,0.00515149,98101.0,98099.0,0.15]
[1732413231096,0.00515149,98101.0,98099.0,0.45824289]
[1732413231306,0.00515149,98101.0,98099.0,0.15]
[1732413231752,0.00015149,98101.0,98099.0,0.15]
[1732413231978,0.00078689,98100.0,98097.0,0.0017186]
[1732413232190,0.00078689,98100.0,98092.0,0.07857911]
[1732413232826,0.0473,98102.0,98092.0,0.07857911]
[1732413234771,0.0473,98102.0,98091.0,0.1517168]
[1732413235013,0.0008593,98106.0,98091.0,0.1517168]
[1732413235014,0.0466,98100.0,98091.0,0.0017168]
[1732413235201,0.0008593,98106.0,98091.0,0.0017168]
[1732413235202,0.002,98098.0,98091.0,0.0017168]
[1732413235481,0.08377431,98097.0,98091.0,0.0017168]
[1732413235896,0.0845,98096.0,98091.0,0.0017168]
[1732413236139,0.0775,98094.0,98091.0,0.0017168]
[1732413236354,0.002,98096.0,98091.0,0.0017168]
[1732413236355,0.00127432,98093.0,98091.0,0.0017168]
[1732413236579,0.10401427,98092.0,98091.0,0.0017168]
[1732413238192,0.15391427,98092.0,98091.0,0.0017168]
[1732413239305,0.23541427,98092.0,98091.0,0.0017168]
[1732413241425,0.0499,98086.0,98066.0,0.0017172]
[1732413241817,0.10328883,98085.0,98080.0,0.07857911]
[1732413242025,0.10201427,98085.0,98075.0,0.07857911]
[1732413242265,0.00127452,98084.0,98075.0,0.07857911]
[1732413242485,0.10328879,98084.0,98075.0,0.07857911]
[1732413244735,0.1314,98086.0,98075.0,0.07857911]
[1732413244966,0.0815,98086.0,98075.0,0.07857911]
[1732413245202,0.0815,98086.0,98075.0,0.10334074]
[1732413245455,0.0815,98086.0,98075.0,0.07857911]
[1732413247113,0.00127439,98093.0,98075.0,0.07857911]
[1732413247343,0.002,98089.0,98083.0,0.07857911]
[1732413247557,0.0815,98088.0,98080.0,0.07857911]
[1732413248216,0.10201427,98093.0,98080.0,0.07857911]
[1732413249335,0.0008595,98092.0,98080.0,0.07857911]
[1732413249575,0.1314,98091.0,98080.0,0.07857911]
[1732413249789,0.00127439,98090.0,98080.0,0.15]
[1732413250012,0.002,98088.0,98080.0,0.15]
[1732413250229,0.002,98088.0,98080.0,0.19033435]
[1732413250455,0.00127439,98090.0,98080.0,0.19033435]
[1732413251905,0.00127439,98090.0,98080.0,0.26891346]
[1732413253835,0.0008595,98092.0,98080.0,0.26891346]
[1732413254588,0.00127439,98091.0,98080.0,0.26891346]
[1732413255276,0.0008595,98092.0,98080.0,0.34661346]
[1732413256803,0.0008595,98092.0,98081.0,0.1998]
[1732413257492,0.0008595,98092.0,98081.0,0.50761251]
[1732413257746,0.0008593,98101.0,98081.0,0.1998]
[1732413257992,0.0008593,98101.0,98092.0,0.15]
[1732413261804,0.15,98127.0,98102.0,0.07857911]
[1732413262030,0.2,98126.0,98102.0,0.07857911]
[1732413262266,0.2,98126.0,98100.0,0.15715822]
[1732413262536,0.002,98109.0,98100.0,0.07857911]
[1732413262762,0.2,98126.0,98100.0,0.15715822]
[1732413264102,0.2,98126.0,98100.0,0.07857911]
[1732413264605,0.002,98109.0,98100.0,0.07857911]
[1732413266127,0.2,98126.0,98100.0,0.07857911]
[1732413266360,0.002,98109.0,98100.0,0.12027498]
[1732413267354,0.2,98126.0,98100.0,0.12027498]
[1732413267573,0.2,98131.0,98100.0,0.12027498]
[1732413267779,0.002,98109.0,98100.0,0.12027498]
[1732413268623,0.002,98106.0,98100.0,0.12027498]
[1732413271864,0.002,98109.0,98100.0,0.12027498]
[1732413272280,0.2,98126.0,98100.0,0.12027498]
[1732413272504,0.00113757,98112.0,98100.0,0.12027498]
[1732413272911,0.0008593,98106.0,98100.0,0.12027498]
[1732413273125,0.00113757,98112.0,98100.0,0.12027498]
[1732413274429,0.00113757,98112.0,98100.0,0.04169587]
[1732413274849,0.00113757,98112.0,98090.0,0.07857911]